Workbook

Sheet Лист1
G1: Приложение 2
D2: к постановлению администрации города Усолье-Сибирское
F3: от 26.12.2025 г. №2474-па
G5: «Приложение 4
D6: к муниципальной программе города Усолье-Сибирское
F7: "Обеспечение населения доступным жильем"
F8: на 2019-2027 годы
A10: Информация об участии муниципального образования «город Усолье-Сибирское» в государственных программах Иркутской области в рамках муниципальной программы города Усолье-Сибирское
A11: "Обеспечение населения доступным жильем" на 2019-2027 годы
A12: (далее – муниципальная программа)
A14: № п/п | B14: Наименование мероприятия, подпрограммы государственной программы Иркутской области | C14: Наименование мероприятия, подпрограммы муниципальной программы | D14: Год реализации | E14: Общий объем финансирования, руб. | F14: Федеральный бюджет, руб. | G14: Областной бюджет, руб. | H14: Иные источники, руб. | I14: Местный бюджет (софинансирование), руб.
A15: 1 | B15: Государственная программа Иркутской области «Доступное жилье» на 2019 - 2027 годы, Государственная программа Иркутской области «Доступное жилье» на 2024 - 2030 годы
A16: 1 | B16: Основное мероприятие "Обеспечение устойчивого сокращения непригодного для проживания жилищного фонда" Подпрограммы "Обеспечение устойчивого сокращения непригодного для проживания жилищного фонда во взаимодействии с государственной корпорацией - Фондом содействия реформированию жилищно-коммунального хозяйства" на 2019 - 2027 годы | C16: Основное мероприятие 1.1. Переселение граждан, проживающих в домах, признанных непригодными для проживания Подпрограммы 1 "Переселение граждан из аварийного жилищного фонда в городе Усолье-Сибирское" на 2019-2027 годы | D16: Итого | E16: =F16+G16+H16+I16 -> 926,621,987.97 | F16: =F17+F18+F19+F20+F21 -> 0.00 | G16: =G17+G18+G19+G20+G21 -> 38,997,600.00 | H16: 880,778,022.47 | I16: 6,846,365.50
D17: 2019 | E17: =F17+G17+H17+I17 -> 0.00 | F17: 0.00 | G17: 0.00 | H17: 0.00 | I17: 0.00
D18: 2020 | E18: 0.00 | F18: 0.00 | G18: 0.00 | H18: 0.00 | I18: 0.00
D19: 2021 | E19: 60,795,371.44 | F19: 0.00 | G19: 0.00 | H19: 60,795,371.44 | I19: 0.00
D20: 2022 | E20: 524,588,486.33 | F20: 0.00 | G20: 21,933,500.00 | H20: 502,376,777.61 | I20: 278,208.72
D21: 2023 | E21: =F21+G21+H21+I21 -> 341,238,130.20 | F21: 0.00 | G21: 17,064,100.00 | H21: 317,605,873.42 | I21: 6,568,156.78
B22: РП "Обеспечение устойчивого сокращения непригодного для проживания жилищного фонда" Иркутской области мероприятие (результат): Строительство и (или) приобретение жилых помещений, а также предоставление возмещений гражданам за изымаемое жилые помещения | C22: Основное мероприятие 1.1. Переселение граждан, проживающих в домах, признанных непригодными для проживания Подпрограммы 1 "Переселение граждан из аварийного жилищного фонда в городе Усолье-Сибирское" на 2019-2027 годы | D22: Итого | E22: =F22+G22+H22+I22 -> 1,302,099,209.78 | F22: =F23+F24+F26 -> 0.00 | G22: 346,491,600.00 | H22: 757,521,600.28 | I22: =I23+I24+I26 -> 198,086,009.50
D23: 2024 | E23: =F23+G23+H23+I23 -> 810,774,679.66 | F23: 0.00 | G23: 3,974,100.00 | H23: 698,327,751.56 | I23: 108,472,828.10
D24: 2025 | E24: =F24+G24+H24+I24 -> 207,866,760.12 | F24: 0.00 | G24: 82,464,500.00 | H24: 59,193,848.72 | I24: 66,208,411.40
D25: 2026 | E25: =F25+G25+H25+I25 -> 357,836,427.00 | F25: 0.00 | G25: 328,290,300.00 | H25: 0.00 | I25: 29,546,127.00
D26: 2027 | E26: 283,457,770.00 | F26: 0.00 | G26: 260,053,000.00 | H26: 0.00 | I26: 23,404,770.00
B27: Основное мероприятие "Улучшение жилищных условий молодых семей" Подпрограммы "Молодым семьям - доступное жилье" на 2019 - 2020 годы | C27: Основное мероприятие 2.1. Предоставление молодым семьям - участникам подпрограммы социальных выплат на приобретение (строительство) жилья Подпрограммы 2 "Обеспечение жильем молодых семей" на 2019-2020 годы | D27: Итого | E27: =F27+G27+H27+I27 -> 20,079,828.44 | F27: =F28+F29 -> 2,891,870.72 | G27: =G28+G29 -> 12,860,487.39 | H27: 0.00 | I27: =I28+I29 -> 4,327,470.33
D28: 2019 | E28: =F28+G28+H28+I28 -> 4,595,095.00 | F28: 1,490,556.49 | G28: 1,997,892.74 | H28: 0.00 | I28: 1,106,645.77
D29: 2020 | E29: =F29+G29+H29+I29 -> 15,484,733.44 | F29: 1,401,314.23 | G29: 10,862,594.65 | H29: 0.00 | I29: 3,220,824.56
A30: ВСЕГО по Государственной программе Иркутской области "Доступное жилье" на 2019-2027 годы: | D30: Итого | E30: =F30+G30+H30+I30 -> 2,040,934,266.07 | F30: =F31+F32+F33+F34+F35+F36+F39 -> 2,891,870.72 | G30: =G31+G32+G33+G34+G35+G36+G39 -> 315,885,187.39 | H30: 1,579,105,774.03 | I30: 143,051,433.93
D31: 2019 | E31: =F31+G31+H31+I31 -> 4,595,095.00 | F31: =F28+F17 -> 1,490,556.49 | G31: =G28+G17 -> 1,997,892.74 | H31: 0.00 | I31: =I28+I17 -> 1,106,645.77
D32: 2020 | E32: 15,484,733.44 | F32: =F29+F18 -> 1,401,314.23 | G32: =G29+G18 -> 10,862,594.65 | H32: 0.00 | I32: =I29+I18 -> 3,220,824.56
D33: 2021 | E33: =F33+G33+H33+I33 -> 60,795,371.44 | F33: =F19 -> 0.00 | G33: =G19 -> 0.00 | H33: =H19 -> 60,795,371.44 | I33: =I19 -> 0.00
D34: 2022 | E34: 524,588,486.33 | F34: 0.00 | G34: =G20 -> 21,933,500.00 | H34: 502,376,777.61 | I34: 278,208.72
D35: 2023 | E35: 341,238,130.20 | F35: 0.00 | G35: 17,064,100.00 | H35: 317,605,873.42 | I35: 6,568,156.78
D36: 2024 | E36: 810,774,679.66 | F36: =F23 -> 0.00 | G36: 3,974,100.00 | H36: 698,327,751.56 | I36: 108,472,828.10
D37: 2025 | E37: 207,866,760.12 | F37: 0.00 | G37: 82,464,500.00 | H37: 59,193,848.72 | I37: 66,208,411.40
D38: 2026 | E38: =F38+G38+H38+I38 -> 357,836,427.00 | F38: =F25 -> 0.00 | G38: 328,290,300.00 | H38: =H25 -> 0.00 | I38: =I25 -> 29,546,127.00
D39: 2027 | E39: 283,457,770.00 | F39: 0.00 | G39: 260,053,000.00 | H39: =H26 -> 0.00 | I39: =I26 -> 23,404,770.00
A40: Подпрограмма 1 "Переселение граждан из аварийного жилищного фонда в городе Усолье-Сибирское" на 2019-2027 годы | D40: Итого | E40: =F40+G40+H40+I40 -> 2,590,458,124.75 | F40: =SUM(F41:F49) -> 0.00 | G40: =SUM(G41:G49) -> 713,779,500.00 | H40: 1,638,299,622.75 | I40: 238,379,002.00
D41: 2019 | E41: =F41+G41+H41+I41 -> 0.00 | F41: =F17 -> 0.00 | G41: 0.00 | H41: 0.00 | I41: 0.00
D42: 2020 | E42: 0.00 | F42: 0.00 | G42: 0.00 | H42: 0.00 | I42: 0.00
D43: 2021 | E43: 60,795,371.44 | F43: 0.00 | G43: 0.00 | H43: 60,795,371.44 | I43: 0.00
D44: 2022 | E44: 524,588,486.33 | F44: 0.00 | G44: 21,933,500.00 | H44: 502,376,777.61 | I44: 278,208.72
D45: 2023 | E45: =F45+G45+H45+I45 -> 341,238,130.20 | F45: =F21 -> 0.00 | G45: =G21 -> 17,064,100.00 | H45: 317,605,873.42 | I45: 6,568,156.78
D46: 2024 | E46: 810,774,679.66 | F46: =F22 -> 0.00 | G46: =G23 -> 3,974,100.00 | H46: 698,327,751.56 | I46: 108,472,828.10
D47: 2025 | E47: 210,797,260.12 | F47: =F24 -> 0.00 | G47: =G24 -> 82,464,500.00 | H47: 59,193,848.72 | I47: 69,138,911.40
D48: 2026 | E48: 358,321,427.00 | F48: =F25 -> 0.00 | G48: =G25 -> 328,290,300.00 | H48: 0.00 | I48: 30,031,127.00
D49: 2027 | E49: =F49+G49+H49+I49 -> 283,942,770.00 | F49: =F26 -> 0.00 | G49: 260,053,000.00 | H49: 0.00 | I49: 23,889,770.00
A50: Подпрограмма 2 "Обеспечение жильем молодых семей" на 2019-2020 годы | D50: Итого | E50: =F50+G50+H50+I50 -> 20,079,828.44 | F50: =F51+F52 -> 2,891,870.72 | G50: =G51+G52 -> 12,860,487.39 | H50: 0.00 | I50: =I51+I52 -> 4,327,470.33
D51: 2019 | E51: =F51+G51+H51+I51 -> 4,595,095.00 | F51: =F28 -> 1,490,556.49 | G51: =G28 -> 1,997,892.74 | H51: 0.00 | I51: =I28 -> 1,106,645.77
D52: 2020 | E52: 15,484,733.44 | F52: =F29 -> 1,401,314.23 | G52: =G29 -> 10,862,594.65 | H52: 0.00 | I52: =I29 -> 3,220,824.56
A53: ВСЕГО по муниципальной программе города Усолье-Сибирское "Обеспечение населения доступным жильём" на 2019-2027 годы: | D53: Итого | E53: =F53+G53+H53+I53 -> 2,610,537,953.19 | F53: =SUM(F54:F62) -> 2,891,870.72 | G53: =SUM(G54:G62) -> 726,639,987.39 | H53: 1,638,299,622.75 | I53: 242,706,472.33
D54: 2019 | E54: 4,595,095.00 | F54: =F41+F51 -> 1,490,556.49 | G54: =G41+G51 -> 1,997,892.74 | H54: 0.00 | I54: =I41+I51 -> 1,106,645.77
D55: 2020 | E55: 15,484,733.44 | F55: =F42+F52 -> 1,401,314.23 | G55: =G42+G52 -> 10,862,594.65 | H55: 0.00 | I55: =I42+I52 -> 3,220,824.56
D56: 2021 | E56: 60,795,371.44 | F56: =F43 -> 0.00 | G56: =G43 -> 0.00 | H56: =H43 -> 60,795,371.44 | I56: 0.00
D57: 2022 | E57: 524,588,486.33 | F57: =F44 -> 0.00 | G57: 21,933,500.00 | H57: =H44 -> 502,376,777.61 | I57: =I44 -> 278,208.72
D58: 2023 | E58: =F58+G58+H58+I58 -> 341,238,130.20 | F58: =F45 -> 0.00 | G58: 17,064,100.00 | H58: =H45 -> 317,605,873.42 | I58: =I45 -> 6,568,156.78
D59: 2024 | E59: =F59+G59+H59+I59 -> 810,774,679.66 | F59: 0.00 | G59: 3,974,100.00 | H59: =H46 -> 698,327,751.56 | I59: =I46 -> 108,472,828.10
D60: 2025 | E60: =F60+G60+H60+I60 -> 210,797,260.12 | F60: 0.00 | G60: 82,464,500.00 | H60: =H47 -> 59,193,848.72 | I60: =I47 -> 69,138,911.40
D61: 2026 | E61: =F61+G61+H61+I61 -> 358,321,427.00 | F61: =F48 -> 0.00 | G61: 328,290,300.00 | H61: =H48 -> 0.00 | I61: 30,031,127.00
D62: 2027 | E62: =F62+G62+H62+I62 -> 283,942,770.00 | F62: 0.00 | G62: 260,053,000.00 | H62: 0.00 | I62: 23,889,770.00 | J62: ».
A64: Мэр города | E64: М.В. Торопкин
